fUSD/lending_fUSD_20250606
["ID","MTS","AMOUNT","RATE_DAILY","PERIOD"]
[364774277,1749238245913,-480.0,0.00027397,5]
[364774278,1749238245922,-480.0,0.00027397,5]
[364774279,1749238245931,-480.0,0.00027397,5]
[364774280,1749238245940,-480.0,0.00027397,5]
[364774281,1749238245949,-502.12,0.00027397,5]
[364774282,1749238245958,-602.79866779,0.00027397,5]
[364774283,1749238245968,-729.42,0.00027397,5]
[364774284,1749238245977,-1800.89,0.00027397,5]
[364774285,1749238245987,-699.03,0.00027397,5]
[364774286,1749238245996,-480.0,0.00027397,5]
[364774287,1749238246006,-498.83,0.00027397,5]
[364774288,1749238246015,-1536.39,0.00027397,5]
[364774289,1749238246024,-480.0,0.00027397,5]
[364774290,1749238246033,-5553.8,0.00027397,5]
[364774291,1749238246042,-698.46,0.00027397,2]
[364774292,1749238246051,-480.0,0.00027397,5]
[364774293,1749238246061,-480.0,0.00027397,5]
[364774294,1749238246071,-480.0,0.00027397,5]
[364774295,1749238246081,-480.0,0.00027397,5]
[364774296,1749238246091,-900.05,0.00027397,5]
[364774297,1749238246100,-694.21,0.00027397,5]
[364774298,1749238246109,-480.0,0.00027397,5]
[364774299,1749238246118,-2081.72,0.00027397,5]
[364774300,1749238246127,-480.0,0.00027397,5]
[364774301,1749238246138,-480.0,0.00027397,5]
[364774302,1749238246147,-162.836284,0.00027397,5]
[364774303,1749238246157,-1295.96,0.00027397,5]
[364774304,1749238246166,-480.0,0.00027397,5]
[364774305,1749238246176,-480.0,0.00027397,5]
[364774306,1749238246185,-480.0,0.00027397,5]
[364774307,1749238246194,-483.69,0.00027397,5]
[364774308,1749238246203,-480.0,0.00027397,5]
[364774309,1749238246213,-480.0,0.00027397,5]
[364774310,1749238246224,-480.0,0.00027397,5]
[364774311,1749238246235,-484.44,0.00027397,5]
[364774312,1749238246245,-480.0,0.00027397,5]
[364774313,1749238246255,-10178.54,0.00027397,5]
[364774314,1749238246264,-250.0,0.00027397,5]
[364774315,1749238246274,-438.36805313,0.00027397,5]
[364774316,1749238246283,-480.0,0.00027397,5]
[364774317,1749238246292,-500.0,0.00027397,2]
[364774318,1749238246302,-500.0,0.00027397,2]
[364774319,1749238246311,-500.0,0.00027397,2]
[364774320,1749238246320,-500.0,0.00027397,2]
[364774321,1749238246330,-500.0,0.00027397,2]
[364774322,1749238246339,-500.0,0.00027397,2]
[364774323,1749238246349,-500.0,0.00027397,2]
[364774324,1749238246359,-500.0,0.00027397,2]
[364774325,1749238246368,-538.10948006,0.00027397,2]
[364774326,1749238246378,-500.0,0.00027397,2]
[364774327,1749238246387,-500.0,0.00027397,2]
[364774328,1749238246397,-480.0,0.00027397,5]
[364774329,1749238246406,-500.0,0.00027397,2]
[364774330,1749238246415,-500.0,0.00027397,2]
[364774331,1749238246424,-500.0,0.00027397,2]
[364774332,1749238246433,-500.0,0.00027397,2]
[364774333,1749238246443,-500.0,0.00027397,2]
[364774334,1749238246453,-500.0,0.00027397,2]
[364774335,1749238246462,-500.0,0.00027397,2]
[364774336,1749238246474,-480.0,0.00027397,5]
[364774337,1749238246483,-500.0,0.00027397,2]
[364774338,1749238246492,-500.0,0.00027397,2]
[364774339,1749238246504,-480.0,0.00027397,5]
[364774340,1749238246516,-480.0,0.00027397,5]
[364774341,1749238246525,-480.0,0.00027397,5]
[364774342,1749238246535,-480.0,0.00027397,5]
[364774343,1749238246545,-2453.62,0.00027397,5]
[364774344,1749238246554,-261.24435137,0.00027397,5]
[364774345,1749238246563,-443.62402992,0.00027397,5]
[364774346,1749238246573,-300.0,0.00027397,2]
[364774347,1749238246583,-158.01,0.00027397,2]
[364774348,1749238246592,-795.48,0.00027397,2]
[364774349,1749238246601,-1228.49,0.00027397,2]
[364774350,1749238246610,-253.74593229,0.00027399,2]
[364774351,1749238246619,-162.89521663,0.00027399,2]
[364774352,1749238246628,-615.0,0.000274,2]
[364774353,1749238246638,-150.0,0.00027437,2]
[364774354,1749238246647,-150.0,0.00027454,2]
[364774355,1749238246656,-167.36881189,0.00027461,2]
[364774356,1749238246665,-150.0,0.00027463,2]
[364774357,1749238246675,-150.0,0.00027464,2]
[364774359,1749238246685,-301.67,0.00027481,2]
[364774361,1749238246694,-302.26,0.00027481,2]
[364774362,1749238246704,-150.0,0.00027506,2]
[364774363,1749238246714,-303.91,0.0002751,2]
[364774364,1749238246724,-303.51,0.0002751,2]
[364774365,1749238246733,-302.93,0.0002751,2]
[364774366,1749238246743,-815.016742,0.00027513,6]
[364774367,1749238246752,-150.0,0.0002752,2]
[364774368,1749238246761,-2551.36129901,0.00027522,2]
[364774369,1749238246771,-964.55090251,0.00027531,2]
[364774370,1749238246780,-263.34,0.00027541,5]
[364774371,1749238246790,-241.76066356,0.00027541,5]
[364774372,1749238246799,-7654.08389703,0.00027541,2]
[364774373,1749238246809,-2462.027,0.00027551,17]
[364774374,1749238246818,-187.485,0.00027551,17]
[364774375,1749238246827,-30616.3355881,0.00027551,2]
[364774376,1749238246837,-156.81,0.0002756,2]
[364774377,1749238246846,-500.0,0.0002756,2]
[364774378,1749238246856,-1204.54,0.0002756,5]
[364774379,1749238246865,-1204.54,0.0002756,5]
[364774380,1749238246875,-1317.765658,0.00027561,5]
[364774381,1749238246884,-1517.919858,0.00027561,5]
[364774382,1749238246894,-541.96468985,0.00027561,5]
[364774383,1749238246904,-413.98880786,0.00027561,5]
[364774384,1749238246914,-480.0,0.00027561,5]
[364774385,1749238246923,-480.0,0.00027561,5]
[364774386,1749238246933,-480.0,0.00027561,5]
[364774387,1749238246941,-480.0,0.00027561,5]
[364774388,1749238246950,-480.0,0.00027561,5]
[364774389,1749238246959,-480.0,0.00027561,5]
[364774390,1749238246972,-480.0,0.00027561,5]
[364774391,1749238246981,-415.97566595,0.00027561,5]
[364774392,1749238246990,-480.0,0.00027561,5]
[364774393,1749238246999,-480.0,0.00027561,5]
[364774394,1749238247008,-480.0,0.00027561,5]
[364774395,1749238247018,-480.0,0.00027561,5]
[364774396,1749238247027,-480.0,0.00027561,5]
[364774397,1749238247036,-480.0,0.00027561,5]
[364774398,1749238247046,-480.0,0.00027561,5]
[364774399,1749238247055,-480.0,0.00027561,5]
[364774400,1749238247064,-480.0,0.00027561,5]
[364774401,1749238247075,-480.0,0.00027561,5]
[364774402,1749238247084,-480.0,0.00027561,5]
[364774403,1749238247094,-480.0,0.00027561,5]
[364774404,1749238247103,-488.54,0.00027561,5]
[364774405,1749238247112,-732.99,0.00027561,5]
[364774406,1749238247122,-480.0,0.00027561,5]
[364774407,1749238247131,-151.0,0.00027561,7]
[364774408,1749238247140,-594.44,0.00027561,5]
[364774409,1749238247151,-1080.27,0.00027561,5]
[364774410,1749238247160,-151.0,0.00027561,7]
[364774411,1749238247170,-487.01,0.00027561,5]
[364774412,1749238247180,-480.0,0.00027561,5]
[364774413,1749238247190,-480.0,0.00027561,5]
[364774414,1749238247199,-1121.24,0.00027561,5]
[364774415,1749238247209,-965.99,0.00027561,5]
[364774416,1749238247219,-151.0,0.00027561,7]
[364774417,1749238247228,-480.0,0.00027561,5]
[364774418,1749238247237,-480.0,0.00027561,5]
[364774419,1749238247247,-480.0,0.00027561,5]
[364774420,1749238247256,-634.69,0.00027561,5]
[364774421,1749238247266,-164.369548,0.00027561,5]
[364774422,1749238247276,-657.28,0.00027561,5]
[364774423,1749238247285,-480.0,0.00027561,5]
[364774424,1749238247407,-480.0,0.00027561,5]
[364774425,1749238247417,-480.0,0.00027561,5]
[364774426,1749238247427,-1036.73,0.00027561,5]
[364774427,1749238247437,-700.4,0.00027561,5]
[364774428,1749238247446,-480.0,0.00027561,5]
[364774429,1749238247456,-522.03,0.00027561,5]
[364774430,1749238247466,-480.0,0.00027561,5]
[364774431,1749238247475,-151.0,0.00027561,7]
[364774432,1749238247485,-480.0,0.00027561,5]
[364774433,1749238247495,-480.0,0.00027561,5]
[364774434,1749238247509,-151.0,0.00027561,7]
[364774435,1749238247519,-600.0,0.00027561,30]
[364774436,1749238247528,-772.01,0.00027561,5]
[364774437,1749238247538,-480.0,0.00027561,5]
[364774438,1749238247551,-480.0,0.00027561,5]
[364774439,1749238247561,-480.0,0.00027561,5]
[364774440,1749238247570,-480.0,0.00027561,5]
[364774441,1749238247579,-480.0,0.00027561,5]
[364774442,1749238247589,-588.08,0.00027561,5]
[364774443,1749238247598,-200.45103809,0.00027561,5]
[364774444,1749238247607,-480.0,0.00027561,5]
[364774445,1749238247617,-480.0,0.00027561,5]
[364774446,1749238247626,-480.0,0.00027561,5]
[364774447,1749238247636,-510.66,0.00027561,5]
[364774448,1749238247645,-480.0,0.00027561,5]
[364774449,1749238247655,-480.0,0.00027561,5]
[364774450,1749238247665,-776.42,0.00027561,5]
[364774451,1749238247674,-371.50217904,0.00027561,5]
[364774452,1749238247683,-570.13,0.00027561,5]
[364774453,1749238247692,-566.75,0.00027561,5]
[364774454,1749238247702,-891.4,0.00027561,5]
[364774455,1749238247711,-480.0,0.00027561,5]
[364774456,1749238247721,-851.49,0.00027561,5]
[364774457,1749238247731,-652.79,0.00027561,5]
[364774458,1749238247740,-151.0,0.00027561,7]
[364774459,1749238247750,-480.0,0.00027561,5]
[364774460,1749238247759,-480.0,0.00027561,5]
[364774461,1749238247768,-480.0,0.00027561,5]
[364774462,1749238247778,-151.0,0.00027561,7]
[364774463,1749238247788,-875.61,0.00027561,5]
[364774464,1749238247797,-533.65,0.00027561,5]
[364774465,1749238247807,-982.9,0.00027561,5]
[364774466,1749238247816,-480.0,0.00027561,5]
[364774467,1749238247826,-480.0,0.00027561,5]
[364774468,1749238247835,-480.0,0.00027561,5]
[364774469,1749238247845,-480.0,0.00027561,5]
[364774470,1749238247854,-724.05,0.00027561,5]
[364774471,1749238247862,-637.08,0.00027561,5]
[364774472,1749238247870,-511.37,0.00027561,5]
[364774473,1749238247879,-623.28,0.00027561,5]
[364774474,1749238247888,-480.0,0.00027561,5]
[364774475,1749238247897,-988.07,0.00027561,5]
[364774476,1749238247906,-151.0,0.00027561,7]
[364774477,1749238247914,-666.13,0.00027561,5]
[364774478,1749238247923,-480.0,0.00027561,5]
[364774479,1749238247931,-480.0,0.00027561,5]
[364774480,1749238247939,-480.0,0.00027561,5]
[364774481,1749238247947,-480.0,0.00027561,5]
[364774482,1749238247956,-480.0,0.00027561,5]
[364774483,1749238247965,-480.0,0.00027561,5]
[364774484,1749238247975,-956.4,0.00027561,5]
[364774485,1749238247984,-702.51,0.00027561,5]
[364774486,1749238247993,-480.0,0.00027561,5]
[364774487,1749238248003,-480.0,0.00027561,5]
[364774488,1749238248013,-480.0,0.00027561,5]
[364774489,1749238248022,-480.0,0.00027561,5]
[364774490,1749238248032,-151.0,0.00027561,7]
[364774491,1749238248042,-480.0,0.00027561,5]
[364774492,1749238248051,-525.04,0.00027561,5]
[364774493,1749238248061,-545.11,0.00027561,5]
[364774494,1749238248071,-480.0,0.00027561,5]
[364774495,1749238248080,-480.0,0.00027561,5]
[364774496,1749238248090,-480.0,0.00027561,5]
[364774497,1749238248099,-480.0,0.00027561,5]
[364774498,1749238248108,-548.91,0.00027561,5]
[364774499,1749238248117,-726.22,0.00027561,5]
[364774500,1749238248126,-1492.05,0.00027561,5]
[364774501,1749238248135,-480.0,0.00027561,5]
[364774502,1749238248144,-151.0,0.00027561,7]
[364774503,1749238248154,-480.0,0.00027561,5]
[364774504,1749238248163,-534.21,0.00027561,5]
[364774505,1749238248172,-747.69,0.00027561,5]
[364774506,1749238248182,-317.999202,0.00027561,7]
[364774507,1749238248191,-151.0,0.00027561,7]
[364774508,1749238248201,-480.0,0.00027561,5]
[364774509,1749238248211,-480.0,0.00027561,5]
[364774510,1749238248220,-480.0,0.00027561,5]
[364774511,1749238248229,-317.999202,0.00027561,7]
[364774512,1749238248239,-813.04,0.00027561,5]
[364774513,1749238248248,-709.62,0.00027561,5]
[364774514,1749238248259,-151.0,0.00027561,7]
[364774515,1749238248268,-2345.629707,0.00027561,7]
[364774516,1749238248278,-480.0,0.00027561,5]
[364774517,1749238248288,-784.75,0.00027561,5]
[364774518,1749238248298,-769.75,0.00027561,5]
[364774519,1749238248308,-151.0,0.00027561,7]
[364774520,1749238248317,-480.0,0.00027561,5]
[364774521,1749238248326,-480.0,0.00027561,5]
[364774522,1749238248335,-151.0,0.00027561,7]
[364774523,1749238248344,-480.0,0.00027561,5]
[364774524,1749238248354,-1609.82,0.00027561,5]
[364774525,1749238248364,-1327.01,0.00027561,5]
[364774526,1749238248374,-151.572642,0.00027561,7]
[364774527,1749238248383,-884.97,0.00027561,5]
[364774528,1749238248393,-480.0,0.00027561,5]
[364774529,1749238248405,-480.0,0.00027561,5]
[364774530,1749238248415,-556.78,0.00027561,5]
[364774531,1749238248425,-151.0,0.00027561,7]
[364774532,1749238248436,-150.0,0.00027561,2]
[364774533,1749238248446,-151.0,0.00027561,7]
[364774534,1749238248456,-480.0,0.00027561,5]
[364774535,1749238248467,-480.0,0.00027561,5]
[364774536,1749238248477,-151.0,0.00027561,7]
[364774537,1749238248488,-151.0,0.00027561,7]
[364774538,1749238248499,-151.0,0.00027561,7]
[364774539,1749238248513,-233.095165,0.00027561,7]
[364774540,1749238248523,-837.78,0.00027561,5]
[364774541,1749238248533,-178.504092,0.00027561,7]
[364774542,1749238248543,-722.94,0.00027561,5]
[364774543,1749238248553,-233.095165,0.00027561,7]
[364774544,1749238248563,-918.951478,0.00027561,7]
[364774545,1749238248572,-151.0,0.00027561,7]
[364774546,1749238248584,-918.951478,0.00027561,7]
[364774547,1749238248594,-798.82,0.00027561,5]
[364774548,1749238248604,-151.0,0.00027561,7]
[364774549,1749238248613,-151.0,0.00027561,7]
[364774550,1749238248623,-480.0,0.00027561,5]
[364774551,1749238248632,-151.0,0.00027561,7]
[364774552,1749238248643,-480.0,0.00027561,5]
[364774553,1749238248653,-480.0,0.00027561,5]
[364774554,1749238248663,-841.94,0.00027561,5]
[364774555,1749238248672,-1110.18,0.00027561,5]
[364774556,1749238248683,-151.0,0.00027561,7]
[364774557,1749238248692,-151.0,0.00027561,7]
[364774558,1749238248702,-541.95,0.00027561,5]
[364774559,1749238248712,-501.99,0.00027561,5]
[364774560,1749238248722,-734.58,0.00027561,5]
[364774561,1749238248732,-940.18,0.00027561,5]
[364774562,1749238248742,-480.0,0.00027561,5]
[364774563,1749238248752,-2677.08,0.00027561,5]
[364774564,1749238248763,-748.04,0.00027561,5]
[364774565,1749238248773,-493.75,0.00027561,5]
[364774566,1749238248783,-480.0,0.00027561,5]
[364774567,1749238248793,-882.46,0.00027561,5]
[364774568,1749238248803,-480.0,0.00027561,5]
[364774569,1749238248813,-635.55,0.00027561,5]
[364774570,1749238248822,-480.0,0.00027561,5]
[364774571,1749238248831,-151.0,0.00027561,7]
[364774572,1749238248841,-477.84624038,0.00027561,5]
[364774573,1749238248850,-480.0,0.00027561,5]
[364774574,1749238248861,-526.86,0.00027561,5]
[364774575,1749238248870,-59280.37,0.00027561,5]
[364774576,1749238248880,-1593.82,0.00027561,5]
[364774577,1749238248889,-480.0,0.00027561,5]
[364774578,1749238248899,-480.0,0.00027561,5]
[364774579,1749238248908,-2740.76,0.00027561,5]
[364774580,1749238248918,-480.0,0.00027561,5]
[364774581,1749238248928,-480.0,0.00027561,5]
[364774582,1749238248938,-480.0,0.00027561,5]
[364774583,1749238248948,-151.0,0.00027561,7]
[364774584,1749238248957,-500.31167585,0.00027561,5]
[364774585,1749238248967,-1096.11,0.00027561,5]
[364774586,1749238248977,-480.0,0.00027561,5]
[364774587,1749238248987,-511.43,0.00027561,5]
[364774588,1749238248997,-541.23035317,0.00027561,5]
[364774589,1749238249007,-480.0,0.00027561,5]
[364774590,1749238249017,-480.0,0.00027561,5]
[364774591,1749238249027,-1000.0,0.00027561,2]
[364774592,1749238249037,-1254.37,0.00027561,5]
[364774593,1749238249046,-8256.04,0.00027561,5]
[364774594,1749238249055,-480.0,0.00027561,5]
[364774595,1749238249065,-2434.11,0.00027561,5]
[364774596,1749238249074,-3890.87,0.00027561,5]
[364774597,1749238249083,-996.25,0.00027561,5]
[364774598,1749238249093,-665.27,0.00027561,5]
[364774599,1749238249106,-480.0,0.00027561,5]
[364774600,1749238249116,-1569.61,0.00027561,5]
[364774601,1749238249126,-480.0,0.00027561,5]
[364774602,1749238249136,-1000.0,0.00027561,5]
[364774603,1749238249146,-480.0,0.00027561,5]
[364774604,1749238249156,-528.51,0.00027561,5]
[364774605,1749238249166,-714.18,0.00027561,5]
[364774606,1749238249176,-675.52,0.00027561,5]
[364774607,1749238249187,-1429.09,0.00027561,5]
[364774608,1749238249198,-480.0,0.00027561,5]
[364774609,1749238249208,-151.0,0.00027561,7]
[364774610,1749238249218,-665.04,0.00027561,5]
[364774611,1749238249228,-189.067661,0.00027561,7]
[364774612,1749238249239,-2692.59,0.00027561,5]
[364774613,1749238249250,-2650.03,0.00027561,5]
[364774614,1749238249260,-151.0,0.00027561,7]
[364774615,1749238249271,-1407.53,0.00027561,5]
[364774616,1749238249281,-480.0,0.00027561,5]
[364774617,1749238249294,-1044.58,0.00027561,5]
[364774618,1749238249304,-189.067661,0.00027561,7]
[364774619,1749238249315,-496.54214851,0.00027561,5]
[364774620,1749238249325,-179.508406,0.00027561,7]
[364774621,1749238249335,-480.0,0.00027561,5]
[364774622,1749238249345,-461.975126,0.00027561,7]
[364774623,1749238249354,-1121.69,0.00027561,5]
[364774624,1749238249364,-480.0,0.00027561,5]
[364774625,1749238249374,-480.0,0.00027561,5]
[364774626,1749238249384,-151.0,0.00027561,7]
[364774627,1749238249394,-1259.89,0.00027561,5]
[364774628,1749238249405,-179.508406,0.00027561,7]
[364774629,1749238249414,-480.0,0.00027561,5]
[364774630,1749238249424,-461.975126,0.00027561,7]
[364774631,1749238249434,-1000.59,0.00027561,5]
[364774632,1749238249444,-153.79294,0.00027561,7]
[364774633,1749238249454,-682.93,0.00027561,5]
[364774634,1749238249464,-10449.09,0.00027561,5]
[364774635,1749238249474,-480.0,0.00027561,5]
[364774636,1749238249484,-2196.0,0.00027561,5]
[364774637,1749238249494,-2596.53,0.00027561,5]
[364774638,1749238249507,-2684.12,0.00027561,5]
[364774639,1749238249517,-480.0,0.00027561,5]
[364774640,1749238249527,-480.0,0.00027561,5]
[364774641,1749238249537,-1035.64,0.00027561,5]
[364774642,1749238249547,-1413.85,0.00027561,5]
[364774643,1749238249557,-269.254107,0.00027561,7]
[364774644,1749238249569,-1346.8,0.00027561,5]
[364774645,1749238249580,-1405.33,0.00027561,5]
[364774646,1749238249590,-789.6,0.00027561,5]
[364774647,1749238249601,-480.0,0.00027561,5]
[364774648,1749238249611,-269.254107,0.00027561,7]
[364774649,1749238249621,-151.0,0.00027561,7]
[364774650,1749238249938,-151.0,0.00027561,7]
[364774651,1749238249948,-151.0,0.00027561,7]
[364774652,1749238249958,-685.7,0.00027561,5]
[364774653,1749238249968,-480.0,0.00027561,5]
[364774654,1749238249978,-887.66,0.00027561,5]
[364774655,1749238249987,-480.0,0.00027561,5]
[364774656,1749238249997,-247.94687,0.00027561,7]
[364774657,1749238250006,-1130.7,0.00027561,5]
[364774658,1749238250015,-532.05768245,0.00027561,5]
[364774659,1749238250025,-480.0,0.00027561,5]
[364774660,1749238250035,-480.0,0.00027561,5]
[364774661,1749238250044,-2132.1,0.00027561,5]
[364774662,1749238250054,-480.0,0.00027561,5]
[364774663,1749238250063,-480.0,0.00027561,5]
[364774664,1749238250073,-1647.92,0.00027561,5]
[364774665,1749238250082,-299.15881782,0.00027561,5]
[364774666,1749238250092,-480.0,0.00027561,5]
[364774667,1749238250101,-834.35,0.00027561,5]
[364774668,1749238250111,-4392.99,0.00027561,5]
[364774669,1749238250120,-3015.43,0.00027561,5]
[364774670,1749238250130,-480.0,0.00027561,5]
[364774671,1749238250139,-480.0,0.00027561,5]
[364774672,1749238250150,-480.0,0.00027561,5]
[364774673,1749238250159,-1470.46,0.00027561,5]
[364774674,1749238250169,-1546.73,0.00027561,5]
[364774675,1749238250179,-1479.99,0.00027561,5]
[364774676,1749238250188,-480.0,0.00027561,5]
[364774677,1749238250198,-1186.47,0.00027561,5]
[364774678,1749238250207,-514.62,0.00027561,5]
[364774679,1749238250217,-480.0,0.00027561,5]
[364774680,1749238250226,-835.23,0.00027561,5]
[364774681,1749238250235,-480.0,0.00027561,5]
[364774682,1749238250245,-1102.69,0.00027561,5]
[364774683,1749238250256,-480.0,0.00027561,5]
[364774684,1749238250266,-480.0,0.00027561,5]
[364774685,1749238250276,-689.03,0.00027561,5]
[364774686,1749238250286,-1040.68,0.00027561,5]
[364774687,1749238250296,-995.31,0.00027561,5]
[364774688,1749238250306,-480.0,0.00027561,5]
[364774689,1749238250316,-200.0,0.00027561,5]
[364774690,1749238250326,-523.71,0.00027561,5]
[364774691,1749238250336,-1046.65,0.00027561,5]
[364774692,1749238250345,-480.0,0.00027561,5]
[364774693,1749238250355,-480.0,0.00027561,5]
[364774694,1749238250365,-3516.83,0.00027561,5]
[364774695,1749238250375,-480.0,0.00027561,5]
[364774696,1749238250386,-7192.4,0.00027561,5]
[364774697,1749238250396,-480.0,0.00027561,5]
[364774698,1749238250407,-480.0,0.00027561,5]
[364774699,1749238250417,-1068.47,0.00027561,5]
[364774700,1749238250426,-843.7,0.00027561,5]
[364774701,1749238250435,-480.0,0.00027561,5]
[364774702,1749238250445,-480.0,0.00027561,5]
[364774703,1749238250454,-1025.1,0.00027561,5]
[364774704,1749238250464,-579.69,0.00027561,5]
[364774705,1749238250473,-618.2,0.00027561,5]
[364774706,1749238250482,-606.91,0.00027561,5]
[364774707,1749238250492,-480.0,0.00027561,5]
[364774708,1749238250504,-7137.4,0.00027561,5]
[364774709,1749238250516,-151.0,0.00027561,7]
[364774710,1749238250526,-480.0,0.00027561,5]
[364774711,1749238250536,-2026.65,0.00027561,5]
[364774712,1749238250547,-151.0,0.00027561,7]
[364774713,1749238250556,-2994.18,0.00027561,5]
[364774714,1749238250566,-11496.53,0.00027561,5]
[364774715,1749238250576,-151.0,0.00027561,7]
[364774716,1749238250586,-435.17107617,0.00027561,5]
[364774717,1749238250596,-480.0,0.00027561,5]
[364774718,1749238250605,-1784.57,0.00027561,5]
[364774719,1749238250614,-1232.611643,0.00027561,7]
[364774720,1749238250624,-514.45,0.00027561,5]
[364774721,1749238250634,-480.0,0.00027561,5]
[364774722,1749238250643,-480.0,0.00027561,5]
[364774723,1749238250653,-480.0,0.00027561,5]
[364774724,1749238250664,-480.0,0.00027561,5]
[364774725,1749238250673,-1232.611643,0.00027561,7]
[364774726,1749238250685,-3152.9,0.00027561,5]
[364774727,1749238250694,-1227.31,0.00027561,5]
[364774728,1749238250704,-480.0,0.00027561,5]
[364774729,1749238250713,-497.39,0.00027561,5]
[364774730,1749238250722,-151.0,0.00027561,7]
[364774731,1749238250732,-480.0,0.00027561,5]
[364774732,1749238250741,-4337.15,0.00027561,5]
[364774733,1749238250751,-151.0,0.00027561,7]
[364774734,1749238250761,-480.0,0.00027561,5]
[364774735,1749238250770,-1547.12,0.00027561,5]
[364774736,1749238250780,-480.0,0.00027561,5]
[364774737,1749238250790,-480.0,0.00027561,5]
[364774738,1749238250799,-3302.16,0.00027561,5]
[364774739,1749238250808,-189.938106,0.00027561,7]
[364774740,1749238250818,-533.36,0.00027561,5]
[364774741,1749238250827,-151.0,0.00027561,7]
[364774742,1749238250836,-747.92,0.00027561,5]
[364774743,1749238250846,-1427.98,0.00027561,5]
[364774744,1749238250856,-572.16,0.00027561,5]
[364774745,1749238250865,-577.87,0.00027561,5]
[364774746,1749238250874,-189.938106,0.00027561,7]
[364774747,1749238250884,-480.0,0.00027561,5]
[364774748,1749238250893,-151.0,0.00027561,7]
[364774749,1749238250903,-151.0,0.00027561,7]
[364774750,1749238250912,-1647.97,0.00027561,5]
[364774751,1749238250922,-480.0,0.00027561,5]
[364774752,1749238250932,-480.0,0.00027561,5]
[364774753,1749238250941,-972.75,0.00027561,5]
[364774754,1749238250951,-480.0,0.00027561,5]
[364774755,1749238250961,-549.18638581,0.00027561,5]
[364774756,1749238250971,-1458.85,0.00027561,5]
[364774757,1749238250980,-551.69,0.00027561,5]
[364774758,1749238250990,-480.0,0.00027561,5]
[364774759,1749238251000,-480.0,0.00027561,5]
[364774760,1749238251010,-2558.54,0.00027561,5]
[364774761,1749238251019,-480.0,0.00027561,5]
[364774762,1749238251029,-1271.48,0.00027561,5]
[364774763,1749238251039,-151.0,0.00027561,7]
[364774764,1749238251048,-151.0,0.00027561,7]
[364774765,1749238251058,-744.59,0.00027561,5]
[364774766,1749238251067,-151.0,0.00027561,7]
[364774767,1749238251077,-535.17,0.00027561,5]
[364774768,1749238251086,-1780.07,0.00027561,5]
[364774769,1749238251097,-480.0,0.00027561,5]
[364774770,1749238251107,-825.48,0.00027561,5]
[364774771,1749238251116,-1087.45,0.00027561,5]
[364774772,1749238251126,-529.15512062,0.00027561,5]
[364774773,1749238251135,-480.0,0.00027561,5]
[364774774,1749238251145,-3642.41,0.00027561,5]
[364774775,1749238251156,-480.0,0.00027561,5]
[364774776,1749238251165,-602.35,0.00027561,5]
[364774777,1749238251174,-457.404501,0.00027561,5]
[364774778,1749238251183,-480.0,0.00027561,5]